bitfinex/quotes_BTCUSD_20250226
["timestamp","ask_amount","ask_price","bid_price","bid_amount"]
[1740528001449,0.003,88889.0,88875.0,0.00763485]
[1740528002004,0.001,88889.0,88875.0,0.00763485]
[1740528002229,0.002,88889.0,88876.0,0.00839834]
[1740528002425,0.003,88889.0,88876.0,0.00839834]
[1740528003131,0.001,88889.0,88876.0,0.00839834]
[1740528003737,0.00196895,88891.0,88876.0,0.00839834]
[1740528003948,0.00196895,88891.0,88878.0,0.0497]
[1740528004126,0.001,88889.0,88878.0,0.0497]
[1740528004321,0.001,88889.0,88879.0,0.0761]
[1740528004816,0.002,88889.0,88879.0,0.0761]
[1740528005069,6.091e-05,88899.0,88880.0,0.01342747]
[1740528005264,0.002,88891.0,88880.0,0.01342747]
[1740528005514,0.002,88889.0,88879.0,0.0761]
[1740528005690,0.00196895,88888.0,88871.0,0.0008485]
[1740528005904,0.05126927,88888.0,88871.0,0.0008485]
[1740528007430,0.05226927,88888.0,88871.0,0.0008485]
[1740528007626,0.05226927,88888.0,88872.0,0.00776485]
[1740528007945,0.05226927,88888.0,88871.0,0.0008485]
[1740528008105,0.05426927,88888.0,88871.0,0.0008485]
[1740528008566,0.05226927,88888.0,88840.0,0.13532605]
[1740528008810,0.02261452,88887.0,88840.0,0.13532605]
[1740528009002,0.00196926,88886.0,88840.0,0.13532605]
[1740528009189,0.00196926,88886.0,88840.0,0.12995145]
[1740528009344,0.01273645,88885.0,88840.0,0.12995145]
[1740528009553,0.00196926,88884.0,88840.0,0.14269663]
[1740528010980,0.0792,88883.0,88840.0,0.14269663]
[1740528011319,0.00196926,88882.0,88840.0,0.14269663]
[1740528011513,0.01754751,88882.0,88841.0,0.1319]
[1740528011680,0.127,88881.0,88842.0,0.0831]
[1740528011877,0.0792,88877.0,88842.0,0.0831]
[1740528012081,0.0792,88864.0,88840.0,0.12995145]
[1740528012286,0.0019696,88863.0,88835.0,0.0831]
[1740528012888,0.01273645,88862.0,88835.0,0.0831]
[1740528013083,0.0019696,88861.0,88835.0,0.0831]
[1740528013285,0.0019696,88861.0,88839.0,0.00126678]
[1740528013509,0.01273645,88860.0,88840.0,0.01467633]
[1740528013734,0.00196968,88859.0,88840.0,0.01467633]
[1740528013926,0.00988,88858.0,88840.0,0.01467633]
[1740528014127,0.00196968,88857.0,88840.0,0.01467633]
[1740528014631,0.01273737,88856.0,88841.0,0.01126396]
[1740528014842,0.00196968,88855.0,88841.0,0.01126396]
[1740528015058,0.00196968,88855.0,88839.0,0.00126678]
[1740528015216,0.01273737,88854.0,88839.0,0.00126678]
[1740528015412,0.00196972,88853.0,88839.0,0.00126678]
[1740528016280,0.01273737,88856.0,88839.0,0.00126678]
[1740528016478,0.21244272,88854.0,88839.0,0.00126678]
[1740528016671,0.02607305,88853.0,88839.0,0.00126678]
[1740528017101,0.0804,88852.0,88839.0,0.00126678]
[1740528017389,0.00197002,88851.0,88839.0,0.00126678]
[1740528017854,0.00829817,88846.0,88839.0,0.00126678]
[1740528018089,0.00197002,88845.0,88839.0,0.00126678]
[1740528019842,0.00297002,88845.0,88839.0,0.00126678]
[1740528020980,0.001,88845.0,88839.0,0.00126678]
[1740528021362,0.001,88845.0,88839.0,0.01083311]
[1740528021770,0.001,88846.0,88839.0,0.01083311]
[1740528022336,0.001,88845.0,88839.0,0.01083311]
[1740528022672,0.001,88846.0,88839.0,0.01083311]
[1740528023069,0.001,88846.0,88839.0,0.00126678]
[1740528024414,0.001,88845.0,88839.0,0.00126678]
[1740528024815,0.001,88846.0,88839.0,0.00126678]
[1740528025233,0.002,88846.0,88839.0,0.00126678]
[1740528025996,0.001,88846.0,88839.0,0.00126678]
[1740528026905,0.002,88846.0,88839.0,0.00126678]
[1740528028153,0.002,88846.0,88840.0,0.00955633]
[1740528028993,0.00992,88851.0,88840.0,0.00955633]
[1740528029151,0.00160292,88850.0,88839.0,0.00126678]
[1740528029553,0.001,88846.0,88839.0,0.00126678]
[1740528029936,0.00150586,88850.0,88839.0,0.00126678]
[1740528030371,0.00992,88858.0,88839.0,0.00126678]
[1740528030940,0.001,88846.0,88839.0,0.00126678]
[1740528031574,0.00992,88858.0,88839.0,0.00126678]
[1740528031931,0.0466,88856.0,88839.0,0.00126678]
[1740528032497,0.0466,88856.0,88801.0,0.50956353]
[1740528032690,0.0466,88856.0,88831.0,0.0001254]
[1740528032880,0.168858,88832.0,88831.0,0.0001254]
[1740528034077,0.16876122,88832.0,88831.0,0.0009743]
[1740528034676,0.16976122,88832.0,88831.0,0.0029743]
[1740528035233,0.18329193,88832.0,88831.0,0.0029743]
[1740528036773,0.27403202,88832.0,88831.0,0.0029743]
[1740528036975,0.168897,88811.0,88810.0,0.3251]
[1740528037205,0.168899,88810.0,88809.0,0.0008488]
[1740528037320,0.168899,88810.0,88809.0,0.00126717]
[1740528040477,0.168899,88810.0,88809.0,1.7e-07]
[1740528041074,0.271594,88812.0,88787.0,0.0008483]
[1740528041075,0.16893,88794.0,88793.0,0.009375]
[1740528041328,0.225212,88805.0,88793.0,0.009375]
[1740528041480,0.16893,88794.0,88793.0,0.009375]
[1740528042112,0.16893,88794.0,88793.0,9.4e-07]
[1740528042315,0.168972,88772.0,88771.0,0.081]
[1740528043094,0.225293,88774.0,88771.0,0.081]
[1740528043315,0.168972,88772.0,88771.0,0.081]
[1740528043517,0.168972,88772.0,88771.0,0.00012507]
[1740528043933,0.168967,88775.0,88771.0,0.00012507]
[1740528044135,0.01766463,88772.0,88771.0,0.00012507]
[1740528044729,0.01866463,88772.0,88771.0,0.00012507]
[1740528045685,0.01866463,88772.0,88771.0,0.62017607]
[1740528045832,0.01866463,88772.0,88771.0,0.61859907]
[1740528046037,0.01866463,88772.0,88771.0,0.44962507]
[1740528046811,0.01966463,88772.0,88771.0,0.61859907]
[1740528046970,0.01966463,88772.0,88771.0,0.61944817]
[1740528047168,0.01966463,88772.0,88771.0,0.45047417]
[1740528047790,0.01966463,88772.0,88771.0,0.61944817]
[1740528047997,0.00866694,88833.0,88783.0,0.01454085]
[1740528048205,0.00866694,88833.0,88816.0,0.1289]
[1740528048523,0.00866694,88833.0,88817.0,0.32667601]
[1740528048649,0.0467978,88856.0,88818.0,0.168884]
[1740528048858,0.0016978,88856.0,88821.0,0.01454085]
[1740528049071,0.0016978,88856.0,88835.0,0.14344085]
[1740528049276,0.0016978,88856.0,88836.0,0.1153229]
[1740528049486,0.00211475,88856.0,88838.0,0.17638685]
[1740528049723,0.00211475,88856.0,88839.0,0.17041942]
[1740528049927,0.00211475,88856.0,88839.0,0.00157542]
[1740528050547,0.168816,88854.0,88838.0,0.00157549]
[1740528050753,0.00311475,88856.0,88837.0,0.50956353]
[1740528051076,0.00211475,88856.0,88823.0,0.0832]
[1740528051265,0.08984272,88855.0,88839.0,0.006]
[1740528051477,0.468842,88840.0,88839.0,0.006]
[1740528051954,0.468842,88840.0,88823.0,0.0832]
[1740528051955,0.3,88840.0,88837.0,0.004]
[1740528052072,0.468846,88838.0,88837.0,0.004]
[1740528052276,0.168859,88832.0,88813.0,0.08]
[1740528052478,0.3,88838.0,88815.0,0.16889]
[1740528052733,0.3,88837.0,88813.0,0.08]
[1740528052931,0.168854,88834.0,88813.0,0.08]
[1740528053137,0.3,88839.0,88837.0,0.001]
[1740528053484,0.468846,88838.0,88837.0,0.001]
[1740528053715,0.168892,88814.0,88813.0,0.007]
[1740528054212,0.168907,88807.0,88791.0,0.08247637]
[1740528054375,0.168911,88805.0,88791.0,0.0809]
[1740528054577,0.3,88827.0,88793.0,0.168931]
[1740528054778,0.3,88814.0,88792.0,0.01290764]
[1740528055289,0.168932,88793.0,88792.0,0.01290764]
[1740528055567,0.3,88814.0,88792.0,0.01290764]
[1740528055794,0.3,88812.0,88792.0,0.01290764]
[1740528056014,0.3,88801.0,88793.0,0.01404076]
[1740528056674,0.30041643,88801.0,88793.0,0.01404076]
[1740528057110,0.00041643,88801.0,88793.0,0.01404076]
[1740528057815,0.00041643,88801.0,88793.0,0.02004076]
[1740528058040,0.00041643,88801.0,88794.0,0.01307765]
[1740528058168,0.00041643,88801.0,88798.0,0.168921]
[1740528058374,0.00041643,88801.0,88800.0,0.168918]
[1740528059271,0.00041643,88801.0,88799.0,0.00157641]
[1740528059421,0.00141643,88801.0,88798.0,0.007]
[1740528059826,0.00141643,88801.0,88799.0,0.00157642]
[1740528060067,0.00041643,88801.0,88795.0,0.00157642]
[1740528060275,0.00141643,88801.0,88800.0,0.006]
[1740528060624,0.47033343,88801.0,88800.0,0.006]
[1740528060819,0.3,88800.0,88792.0,0.3251]
[1740528060963,0.46892,88800.0,88792.0,0.3251]
[1740528061163,0.46892,88800.0,88799.0,0.005]
[1740528061569,0.3,88800.0,88799.0,0.005]
[1740528061780,0.168918,88800.0,88799.0,0.005]
[1740528062379,0.001,88800.0,88792.0,0.3321]
[1740528062581,0.468929,88795.0,88792.0,0.3321]
[1740528062773,0.468929,88795.0,88792.0,0.3251]
[1740528062985,0.3,88795.0,88792.0,0.3251]
[1740528063758,0.168932,88793.0,88792.0,0.3251]
[1740528063965,0.002,88800.0,88782.0,0.3251]
[1740528063966,0.168943,88788.0,88782.0,0.3251]
[1740528064184,0.168938,88790.0,88782.0,0.3251]
[1740528064386,0.3,88796.0,88782.0,0.3251]
[1740528064599,0.168951,88783.0,88782.0,0.3251]
[1740528065228,0.168947,88785.0,88782.0,0.3251]
[1740528065469,0.225261,88786.0,88782.0,0.3251]
[1740528065682,0.3,88785.0,88782.0,0.3251]
[1740528066242,0.168951,88783.0,88782.0,0.3251]
[1740528066449,0.16895,88784.0,88782.0,0.3251]
[1740528066884,0.168951,88783.0,88782.0,0.3251]
[1740528067088,0.168951,88783.0,88782.0,0.3371]
[1740528067306,0.302,88785.0,88782.0,0.3371]
[1740528067483,0.225225,88800.0,88782.0,0.3311]
[1740528067684,0.1,88825.0,88782.0,0.3311]
[1740528067685,0.001,88784.0,88783.0,0.168951]
[1740528067884,0.168909,88805.0,88783.0,0.0015765]
[1740528068090,0.225209,88807.0,88783.0,0.0015765]
[1740528068295,0.225209,88807.0,88783.0,0.2268425]
[1740528068296,0.225216,88804.0,88783.0,0.2268425]
[1740528068498,0.225157,88827.0,88782.0,0.3311]
[1740528068698,0.225197,88811.0,88783.0,0.00157649]
[1740528069064,0.225187,88815.0,88783.0,0.00157649]
[1740528069269,0.168912,88804.0,88786.0,0.168945]
[1740528069399,0.168909,88805.0,88787.0,0.32667649]
[1740528069614,0.168912,88804.0,88787.0,0.494042]
[1740528069972,0.168909,88805.0,88788.0,0.168941]
[1740528070174,0.225209,88807.0,88787.0,0.3251]
[1740528070329,0.168929,88795.0,88787.0,0.3251]
[1740528070557,0.168929,88795.0,88787.0,0.3271]
[1740528070741,0.168923,88798.0,88787.0,0.3271]
[1740528071262,0.16893,88795.0,88787.0,0.3281]
[1740528071463,0.225212,88805.0,88787.0,0.3281]
[1740528071931,0.168924,88798.0,88787.0,0.3251]
[1740528072171,0.168924,88798.0,88787.0,0.3191]
[1740528072389,0.168919,88800.0,88787.0,0.3191]
[1740528072532,0.16892,88800.0,88787.0,0.3191]
[1740528072728,0.168922,88799.0,88787.0,0.3241]
[1740528072933,0.168923,88798.0,88787.0,0.3241]
[1740528073131,0.168923,88798.0,88787.0,0.3191]
[1740528073549,0.168923,88798.0,88787.0,0.3231]
[1740528074247,0.168924,88797.0,88787.0,0.3191]
[1740528074458,0.225225,88800.0,88787.0,0.3191]
[1740528074671,0.225225,88800.0,88787.0,0.3221]
[1740528074799,0.225225,88800.0,88787.0,0.3191]
[1740528075012,0.168927,88796.0,88787.0,0.3231]
[1740528075275,0.00041643,88801.0,88787.0,0.3231]
[1740528075520,0.00041643,88801.0,88787.0,0.3191]
[1740528075767,0.168931,88794.0,88787.0,0.3221]
[1740528076007,0.00041643,88801.0,88787.0,0.3151]
[1740528076205,0.00041643,88801.0,88787.0,0.488042]
[1740528076426,0.00041643,88801.0,88787.0,0.3241]
[1740528076555,0.00041643,88801.0,88787.0,0.489043]
[1740528076953,0.00041643,88801.0,88788.0,0.0825]
[1740528077234,0.00041643,88801.0,88789.0,0.168939]
[1740528077811,0.00041643,88801.0,88788.0,0.0825]
[1740528078367,0.00041643,88801.0,88800.0,0.168918]
[1740528078576,0.00041643,88801.0,88800.0,0.17049431]
[1740528078785,0.00041643,88801.0,88800.0,0.00157631]
[1740528079209,0.00041643,88801.0,88800.0,0.17049431]
[1740528079426,0.00041643,88801.0,88800.0,0.00157631]
[1740528079644,0.00041643,88801.0,88789.0,0.002]
[1740528079645,0.00041643,88801.0,88794.0,0.00157631]
[1740528080148,0.00041643,88801.0,88800.0,0.002]
[1740528080629,0.00041643,88801.0,88800.0,0.003]
[1740528080906,0.00041643,88801.0,88800.0,0.3181]
[1740528081168,0.46933343,88801.0,88800.0,0.1859256]
[1740528081422,0.468928,88795.0,88794.0,0.002]
[1740528082105,0.3,88794.0,88789.0,0.50956353]
[1740528082307,0.468937,88790.0,88789.0,0.50956353]
[1740528083081,0.3,88790.0,88789.0,0.50956353]
[1740528083689,0.00211523,88801.0,88789.0,0.50956353]
[1740528083890,0.001,88795.0,88789.0,0.50956353]
[1740528084303,0.001,88795.0,88794.0,0.16893]
[1740528084480,0.001,88795.0,88794.0,0.17050633]
[1740528084684,0.001,88795.0,88794.0,0.49560633]
[1740528084936,0.001,88795.0,88794.0,0.49403]
[1740528085135,0.07671793,88829.0,88794.0,0.49403]
[1740528085339,0.168878,88821.0,88804.0,0.16891]
[1740528085565,0.225154,88828.0,88806.0,0.168905]
[1740528085862,0.08952543,88829.0,88799.0,0.168919]
[1740528085997,0.3,88816.0,88800.0,0.00157619]
[1740528086197,0.3,88816.0,88799.0,0.168919]
[1740528086508,0.3,88816.0,88794.0,0.33022507]
[1740528086715,0.3,88816.0,88800.0,0.168917]
[1740528086959,0.3,88816.0,88799.0,0.00157624]
[1740528087151,0.01454085,88850.0,88794.0,0.33022507]
[1740528087152,0.3,88824.0,88794.0,0.33022507]
[1740528087390,0.168899,88811.0,88806.0,0.001]
[1740528087620,0.3,88812.0,88806.0,0.001]
[1740528087850,0.3,88812.0,88795.0,0.168927]
[1740528088112,0.468896,88812.0,88795.0,0.168928]
[1740528088382,0.3,88812.0,88799.0,0.002]
[1740528088574,0.3,88814.0,88794.0,0.32522507]
[1740528088826,0.3,88814.0,88806.0,0.004]
[1740528089193,0.3,88814.0,88799.0,0.0015763]
[1740528089445,0.3,88817.0,88800.0,0.0015763]
[1740528089629,0.3,88817.0,88794.0,0.32522507]
[1740528089828,0.08984272,88815.0,88800.0,0.003]
[1740528090030,0.468917,88801.0,88800.0,0.003]
[1740528090436,0.168928,88795.0,88794.0,0.32522507]
[1740528090572,0.3,88796.0,88794.0,0.32522507]
[1740528090788,0.3,88798.0,88794.0,0.32522507]
[1740528091677,0.225214,88805.0,88794.0,0.32522507]
[1740528091678,0.08984272,88815.0,88794.0,0.33222507]
[1740528091878,0.3,88809.0,88794.0,0.32522507]
[1740528092264,0.3,88807.0,88794.0,0.33222507]
[1740528092461,0.3,88805.0,88794.0,0.33222507]
[1740528092976,0.001,88798.0,88794.0,0.33922507]
[1740528093193,0.001,88798.0,88794.0,0.01412507]
[1740528093538,0.468903,88809.0,88794.0,0.00012507]
[1740528093739,0.3,88809.0,88794.0,0.00012507]
[1740528093887,0.168904,88808.0,88794.0,0.00570154]
[1740528094088,0.3,88803.0,88794.0,0.00412507]
[1740528094293,0.468913,88803.0,88794.0,0.00012507]
[1740528094474,0.3,88801.0,88794.0,0.00712507]
[1740528094671,0.168928,88795.0,88794.0,0.00912507]
[1740528094970,0.168928,88795.0,88794.0,0.01212507]
[1740528095373,0.168928,88795.0,88794.0,0.00512507]
[1740528095804,0.168928,88795.0,88794.0,0.00312507]
[1740528096227,0.168928,88795.0,88794.0,0.00812507]
[1740528096421,0.3,88799.0,88794.0,0.00812507]
[1740528096664,0.3,88799.0,88794.0,0.00897407]
[1740528097040,0.3,88799.0,88794.0,0.00097407]
[1740528097242,0.46892,88799.0,88794.0,0.00597407]
[1740528097407,0.3,88801.0,88794.0,0.01097407]
[1740528097608,0.3,88799.0,88794.0,0.00597407]
[1740528097855,0.3,88799.0,88794.0,0.00897407]
[1740528098839,0.3,88797.0,88794.0,0.00897407]
[1740528099078,0.168928,88795.0,88794.0,0.00397407]
[1740528099347,0.168928,88795.0,88794.0,0.00697407]
[1740528099549,0.3,88798.0,88794.0,0.00697407]
[1740528099810,0.3,88798.0,88794.0,0.00097407]
[1740528099986,0.3,88798.0,88794.0,0.00497407]
[1740528100188,0.3,88798.0,88794.0,0.00397407]
[1740528100404,0.225187,88816.0,88794.0,0.00397407]
[1740528100405,0.3,88818.0,88794.0,0.00397407]
[1740528100608,0.225186,88816.0,88796.0,0.168925]
[1740528100832,0.3,88818.0,88797.0,0.00157637]
[1740528101235,0.22517,88822.0,88797.0,0.00157637]
[1740528101436,0.168894,88814.0,88797.0,0.00157637]
[1740528101586,0.168894,88813.0,88797.0,0.00157637]
[1740528101801,0.3,88811.0,88798.0,0.00157631]
[1740528102012,0.168908,88806.0,88795.0,0.0803]
[1740528102193,0.3,88805.0,88795.0,0.0803]
[1740528103021,0.3,88805.0,88795.0,0.08187639]
[1740528103352,0.3,88809.0,88795.0,0.08187639]
[1740528103549,0.3,88811.0,88795.0,0.08187639]
[1740528103973,0.01454085,88821.0,88795.0,0.008]
[1740528104131,0.3,88796.0,88795.0,0.008]
[1740528104321,0.468926,88796.0,88795.0,0.008]
[1740528104515,0.468926,88796.0,88795.0,0.01]
[1740528104937,0.3,88796.0,88795.0,0.01]
[1740528105172,0.3,88796.0,88795.0,0.006]
[1740528105380,0.468926,88796.0,88795.0,0.006]
[1740528105581,0.3,88796.0,88795.0,0.007]
[1740528105780,0.3,88796.0,88795.0,0.001]
[1740528105976,0.3,88796.0,88794.0,0.00097407]
[1740528106347,0.301,88796.0,88795.0,0.006]
[1740528106544,0.001,88796.0,88795.0,0.012]
[1740528106808,0.12508474,88834.0,88795.0,0.012]
[1740528106809,0.1535433,88834.0,88795.0,0.006]
[1740528106984,0.168926,88796.0,88795.0,0.006]
[1740528107185,0.169926,88796.0,88795.0,0.006]
[1740528107386,0.168928,88795.0,88794.0,0.00697407]
[1740528108470,0.18346885,88795.0,88794.0,0.00097407]
[1740528108676,0.168941,88788.0,88787.0,0.0008494]
[1740528108872,0.168941,88788.0,88787.0,0.00126583]
[1740528108873,0.468941,88788.0,88787.0,0.00126583]
[1740528109271,0.0478,88797.0,88787.0,0.00126583]
[1740528109489,0.01228297,88797.0,88787.0,0.00126583]
[1740528109667,0.168941,88788.0,88787.0,0.00126583]
[1740528109867,0.168941,88788.0,88787.0,0.00226583]
[1740528110763,0.168941,88788.0,88787.0,0.00126583]
[1740528111855,0.0808,88803.0,88787.0,0.00126583]
[1740528112010,0.170926,88797.0,88787.0,0.00126583]
[1740528112194,0.01232197,88802.0,88787.0,0.00326583]
[1740528112394,0.3,88801.0,88788.0,0.00157666]
[1740528112608,0.18659179,88795.0,88788.0,0.00157666]
[1740528112866,0.18659179,88795.0,88787.0,0.00326583]
[1740528113045,0.18659179,88795.0,88787.0,0.00126583]
[1740528113246,0.18759179,88795.0,88787.0,0.00826583]
[1740528113405,0.01866279,88795.0,88787.0,0.02388497]
[1740528113608,0.168934,88792.0,88787.0,0.01688497]
[1740528114027,0.168941,88788.0,88787.0,0.01526583]
[1740528114917,0.168941,88788.0,88787.0,0.00826583]
[1740528115138,0.168941,88788.0,88787.0,0.00726583]
[1740528115538,0.168941,88788.0,88787.0,0.00826583]
[1740528115914,0.01454085,88793.0,88787.0,0.00326583]
[1740528116081,0.3,88791.0,88787.0,0.00426583]
[1740528116282,0.468937,88791.0,88787.0,0.00226583]
[1740528116484,0.468937,88791.0,88787.0,0.00126583]
[1740528116687,0.468937,88791.0,88787.0,0.00726583]
[1740528117044,0.168938,88790.0,88787.0,0.00426583]
[1740528117269,0.01766279,88795.0,88787.0,0.00426583]
[1740528117714,0.01766279,88795.0,88788.0,0.00834147]
[1740528117872,0.01766279,88795.0,88787.0,0.00426583]
[1740528117873,0.168941,88788.0,88787.0,0.00426583]
[1740528118043,0.468941,88788.0,88787.0,0.00126583]
[1740528118508,0.468941,88788.0,88787.0,0.00526583]
[1740528118728,0.468941,88788.0,88787.0,0.00126583]
[1740528118927,0.468941,88788.0,88787.0,0.00526583]
[1740528119246,0.468941,88788.0,88787.0,0.00726583]
[1740528119445,0.468941,88788.0,88787.0,0.00126583]
[1740528119680,0.48348185,88788.0,88787.0,0.00326583]
[1740528119808,0.468941,88788.0,88787.0,0.00326583]
[1740528120227,0.468941,88788.0,88787.0,0.00826583]
[1740528120827,0.3,88788.0,88787.0,0.00826583]
[1740528121032,0.468941,88788.0,88787.0,0.00626583]
[1740528121228,0.3,88788.0,88787.0,0.00626583]
[1740528121552,0.468941,88788.0,88787.0,0.01126583]
[1740528121755,0.3,88788.0,88787.0,0.01126583]
[1740528122275,0.468941,88788.0,88787.0,0.00626583]
[1740528122776,0.468941,88788.0,88787.0,0.00226583]
[1740528123005,0.01766279,88795.0,88787.0,0.00526583]
[1740528123185,0.01766279,88795.0,88794.0,0.16893]
[1740528123410,0.01766279,88795.0,88792.0,0.168933]
[1740528123551,0.01766279,88795.0,88793.0,0.00157651]
[1740528124141,0.3,88809.0,88793.0,0.00157651]
[1740528124142,0.3,88809.0,88794.0,0.0808]
[1740528124347,0.01766125,88808.0,88795.0,0.17050442]
[1740528124554,0.01766125,88808.0,88795.0,0.21600442]
[1740528125439,0.0026986,88796.0,88795.0,0.22300442]
[1740528125639,0.0026986,88796.0,88795.0,0.221428]
[1740528126025,0.0016986,88796.0,88795.0,0.221428]
[1740528126438,0.0016986,88796.0,88795.0,0.0455]
[1740528126646,0.0016986,88796.0,88795.0,0.0525]
[1740528126967,0.0016986,88796.0,88795.0,0.21600434]
[1740528127282,0.0016986,88796.0,88795.0,0.22300434]
[1740528127500,0.0016986,88796.0,88795.0,0.228428]
[1740528127906,0.0016986,88796.0,88795.0,0.221428]
[1740528128397,0.0016986,88796.0,88795.0,0.228428]
[1740528128813,0.0016986,88796.0,88795.0,0.0595]
[1740528128977,0.0016986,88796.0,88795.0,0.38617632]
[1740528129174,0.0016986,88796.0,88795.0,0.3846]
[1740528129593,0.0016986,88796.0,88795.0,0.553528]
[1740528129769,0.0016986,88796.0,88795.0,0.3846]
[1740528131502,0.1706246,88796.0,88795.0,0.014]
[1740528131675,0.4706246,88796.0,88795.0,0.014]
[1740528132696,0.4706246,88796.0,88795.0,0.007]
[1740528132825,0.3016986,88796.0,88795.0,0.011]
[1740528133232,0.3016986,88796.0,88795.0,0.007]
[1740528133490,0.3,88795.0,88787.0,0.00126583]
[1740528133695,0.3,88795.0,88788.0,0.00157663]
[1740528133867,0.0016986,88796.0,88788.0,0.22683063]
[1740528134068,0.0016986,88796.0,88787.0,0.00126583]
[1740528134275,0.0016986,88796.0,88788.0,0.00157651]
[1740528134473,0.0016986,88796.0,88795.0,0.007]
[1740528135093,0.0016986,88796.0,88789.0,0.39419]
[1740528135379,0.001,88796.0,88795.0,0.007]
[1740528135593,0.225198,88811.0,88795.0,0.07807634]
[1740528135795,0.18656525,88808.0,88795.0,0.07807634]
[1740528136154,0.001,88796.0,88795.0,0.08507634]
[1740528136645,0.001,88796.0,88795.0,0.25400434]
[1740528136801,0.01766125,88808.0,88795.0,0.25400434]
[1740528136802,0.01766125,88808.0,88795.0,0.0765]
[1740528137007,0.168909,88806.0,88795.0,0.08507629]
[1740528137342,0.01766125,88808.0,88796.0,0.3251]
[1740528137586,0.225207,88807.0,88796.0,0.3251]
[1740528137752,0.16891,88805.0,88796.0,0.3251]
[1740528137958,0.01766125,88808.0,88796.0,0.3251]
[1740528138646,0.01766125,88808.0,88796.0,0.3291]
[1740528138872,0.01766125,88808.0,88797.0,0.00157631]
[1740528139265,0.01766125,88808.0,88796.0,0.3291]
[1740528139266,0.01766125,88808.0,88796.0,0.3331]
[1740528139669,0.18656425,88808.0,88797.0,0.00157633]
[1740528139837,0.01766125,88808.0,88797.0,0.00157633]
[1740528140291,0.01766125,88808.0,88797.0,0.004]
[1740528140494,0.168905,88807.0,88797.0,0.004]
[1740528140993,0.01766125,88808.0,88797.0,0.3331]
[1740528141191,0.168905,88807.0,88797.0,0.3331]
[1740528141421,0.168905,88807.0,88797.0,0.3291]
[1740528141633,0.01766125,88808.0,88797.0,0.3251]
[1740528141776,0.01766125,88808.0,88797.0,0.3291]
[1740528141971,0.01766125,88808.0,88797.0,0.3341]
[1740528142849,0.01766125,88808.0,88797.0,0.3291]
[1740528143056,0.01766125,88808.0,88797.0,0.3301]
[1740528143355,0.01766125,88808.0,88797.0,0.3341]
[1740528144156,0.168922,88798.0,88797.0,0.3341]
[1740528145010,0.06446125,88808.0,88797.0,0.3341]
[1740528145181,0.3,88805.0,88797.0,0.3341]
[1740528145385,0.3,88805.0,88797.0,0.3291]
[1740528145766,0.168922,88798.0,88797.0,0.3341]
[1740528145945,0.16875307,88798.0,88797.0,0.3251]
[1740528146141,0.16875307,88798.0,88797.0,0.3291]
[1740528146370,0.16875307,88798.0,88797.0,0.3331]
[1740528146573,0.16875307,88798.0,88797.0,0.3291]
[1740528146747,0.225227,88799.0,88797.0,0.005]
[1740528146947,0.168922,88798.0,88797.0,0.005]
[1740528147276,0.168922,88798.0,88797.0,0.012]
[1740528147445,0.168922,88798.0,88797.0,0.005]
[1740528147851,0.168922,88798.0,88797.0,0.011]
[1740528148322,0.168922,88798.0,88797.0,0.006]
[1740528148527,0.168922,88798.0,88797.0,0.013]
[1740528148904,0.168922,88798.0,88797.0,0.006]
[1740528149138,0.225229,88799.0,88789.0,0.0008492]
[1740528149284,0.225224,88801.0,88797.0,0.007]
[1740528149485,0.3,88806.0,88797.0,0.013]
[1740528149705,0.168922,88798.0,88797.0,0.013]
[1740528150318,0.168922,88798.0,88797.0,0.007]
[1740528150544,0.168922,88798.0,88797.0,0.012]
[1740528151103,0.168922,88798.0,88797.0,0.007]
[1740528151307,0.168928,88796.0,88789.0,0.0008492]
[1740528151645,0.168922,88798.0,88797.0,0.004]
[1740528151851,0.24286625,88808.0,88789.0,0.0008492]
[1740528151852,0.01766125,88808.0,88789.0,0.0008492]
[1740528152082,0.168927,88796.0,88790.0,0.00157649]
[1740528152257,0.01766125,88808.0,88789.0,0.0008492]
[1740528152455,0.01766125,88808.0,88797.0,0.006]
[1740528152684,0.168922,88798.0,88797.0,0.006]
[1740528152892,0.01766125,88808.0,88789.0,0.0008492]
[1740528153028,0.168933,88793.0,88789.0,0.00242569]
[1740528153222,0.01766125,88808.0,88790.0,0.014]
[1740528153430,0.3,88804.0,88790.0,0.014]
[1740528153630,0.3,88806.0,88790.0,0.007]
[1740528153836,0.3,88806.0,88794.0,0.168928]
[1740528154050,0.3,88806.0,88796.0,0.0781]
[1740528154293,0.3,88806.0,88790.0,0.281949]
[1740528154294,0.3,88806.0,88790.0,0.1348]
[1740528154443,0.168925,88797.0,88790.0,0.1348]
[1740528154649,0.168923,88798.0,88790.0,0.1278]
[1740528154844,0.225223,88801.0,88797.0,0.007]
[1740528155086,0.168922,88798.0,88797.0,0.007]
[1740528155292,0.168922,88798.0,88790.0,0.1278]
[1740528155456,0.168921,88799.0,88790.0,0.1278]
[1740528155652,0.168919,88800.0,88790.0,0.1318]
[1740528155851,0.22521,88806.0,88790.0,0.1318]
[1740528156116,0.3,88807.0,88790.0,0.1278]
[1740528156253,0.168919,88800.0,88797.0,0.007]
[1740528156595,0.168919,88800.0,88790.0,0.1278]
[1740528156596,0.168907,88806.0,88790.0,0.12937646]
[1740528156833,0.22521,88806.0,88790.0,0.1308]
[1740528157053,0.22521,88806.0,88796.0,0.0008482]
[1740528157256,0.2269064,88806.0,88796.0,0.0008482]
[1740528157458,0.3,88816.0,88796.0,0.0008482]
[1740528157753,0.168911,88804.0,88797.0,0.005]
[1740528157950,0.168906,88807.0,88797.0,0.005]
[1740528158131,0.168906,88807.0,88796.0,0.0008482]
[1740528158531,0.168907,88806.0,88796.0,0.0078482]
[1740528158729,0.225205,88808.0,88796.0,0.0078482]
[1740528159056,0.168905,88808.0,88797.0,0.004]
[1740528159248,0.3,88810.0,88797.0,0.004]
[1740528159456,0.01531543,88821.0,88798.0,0.00157638]